[Event "1st Irena Warakomska Memorial"]
[Site "Suwalki"]
[Date "2017.08.18"]
[Round "9"]
[White "Czerwonski, Aleksander"]
[Black "Szustakowski, Antoni"]
[Result "0-1"]
[ECO "D39"]
[WhiteElo "2392"]
[BlackElo "2235"]
[Annotator "ChessBase"]
[PlyCount "76"]
[EventDate "2017.??.??"]
[EventType "swiss"]
[EventCountry "POL"]
[SourceTitle "playchess.com"]
[Source "ChessBase"]
[SourceQuality "1"]
[TimeControl "40/5400+30:1800+30"]

1. d4 {[%emt 0:00:00]} Nf6 {[%emt 0:00:06]} 2. c4 {[%emt 0:00:00]} e6 {[%emt 0:00:08]} 3. Nf3 {[%emt 0:00:00]} d5 {[%emt 0:00:10]} 4. Bg5 {[%emt 0:00:00]} Bb4+ {[%emt 0:00:22]} 5. Nc3 {[%emt 0:00:09]} dxc4 {[%emt 0:00:06]} 6. e4 {[%emt 0:00:08]} c5 {[%emt 0:00:18]} 7. Bxc4 {[%emt 0:08:11]} cxd4 {[%emt 0:01:18]} 8. Nxd4 {[%emt 0:02:30]} Bxc3+ {[%emt 0:00:56]} 9. bxc3 {[%emt 0:00:09]} Qa5 {[%emt 0:00:09]} 10. Bxf6 {[%emt 0:02:54]} Qxc3+ {[%emt 0:04:36]} 11. Kf1 {[%emt 0:00:24]} gxf6 {[%emt 0:00:27]} 12. Rc1 {[%emt 0:04:28]} Qa5 {[%emt 0:03:03]} 13. Nb5 {[%emt 0:02:27]} a6 {[%emt 0:09:06]} 14. Nd6+ {[%emt 0:14:33]} Ke7 {[%emt 0:00:39]} 15. Be2 {[%emt 0:00:52]} Nc6 {[%emt 0:02:09]} 16. Nc4 {[%emt 0:01:06]} Qc5 {[%emt 0:10:47]} 17. Ne3 {[%emt 0:33:01]} Qd6 {[%emt 0:04:08]} 18. Qc2 {[%emt 0:01:45]} Rd8 {[%emt 0:12:05]} 19. g3 {[%emt 0:09:27]} Nd4 {[%emt 0:06:58]} 20. Qb1 {[%emt 0:01:57]} b5 {[%emt 0:06:55]} 21. Bd3 {[%emt 0:04:53]} Bb7 {[%emt 0:04:32]} 22. Kg2 {[%emt 0:01:49]} Rac8 {[%emt 0:03:55]} 23. Rhd1 {[%emt 0:02:45]} Rxc1 {[%emt 0:05:08]} 24. Qxc1 {[%emt 0:00:04]} Rc8 {[%emt 0:03:21]} 25. Qb2 {[%emt 0:00:27]} Qe5 {[%emt 0:04:49]} 26. f4 {[%emt 0:02:11]} Qc5 {[%emt 0:01:49]} 27. Bb1 {[%emt 0:01:35]} Nc2 {[%emt 0:02:18]} 28. Qxc2 {[%emt 0:04:54]} Qxe3 {[%emt 0:00:13]} 29. Qd3 {[%emt 0:00:53]} Qxd3 {[%emt 0:00:09]} 30. Bxd3 {[%emt 0:00:01]} f5 {[%emt 0:00:37]} 31. Re1 {[%emt 0:01:19]} fxe4 {[%emt 0:00:27]} 32. Bxe4 {[%emt 0:00:30]} Bxe4+ {[%emt 0:00:20]} 33. Rxe4 {[%emt 0:00:01]} Rc2+ {[%emt 0:00:06]} 34. Kf3 {[%emt 0:00:09]} Rxa2 {[%emt 0:00:08]} 35. f5 {[%emt 0:00:03]} Rxh2 {[%emt 0:00:38]} 36. fxe6 {[%emt 0:00:22]} fxe6 {[%emt 0:00:05]} 37. Re1 {[%emt 0:00:11]} a5 {[%emt 0:00:34]} 38. Ra1 {[%emt 0:00:18]} a4 {[%emt 0:00:09]} 0-1

[Event "1st Irena Warakomska Memorial"]
[Site "Suwalki"]
[Date "2017.08.18"]
[Round "9"]
[White "Teclaf, Pawel"]
[Black "Zochowski, Kacper"]
[Result "1-0"]
[ECO "C88"]
[WhiteElo "2373"]
[BlackElo "2239"]
[Annotator "ChessBase"]
[PlyCount "81"]
[EventDate "2017.??.??"]
[EventType "swiss"]
[EventCountry "POL"]
[SourceTitle "playchess.com"]
[Source "ChessBase"]
[SourceQuality "1"]
[TimeControl "40/5400+30:1800+30"]

1. e4 e5 2. Nf3 Nc6 3. Bb5 a6 4. Ba4 Nf6 5. O-O Be7 6. Re1 b5 7. Bb3 O-O 8. a4 Bb7 9. d3 d6 10. Nc3 b4 11. Nd5 Nxd5 12. Bxd5 Bf6 13. c3 Rb8 14. Be3 bxc3 15. bxc3 Na5 16. Bxb7 Rxb7 17. Qe2 Qa8 18. d4 Rfb8 19. Rad1 Rb2 20. Qd3 Nc6 21. Qc4 exd4 22. cxd4 R2b4 23. Qd5 Nd8 24. Qf5 Ne6 25. d5 Nf8 26. e5 dxe5 27. Nxe5 Rxa4 28. Nc6 Re8 29. Bc5 Qc8 30. Qc2 Rg4 31. h3 Rg5 32. Rxe8 Qxe8 33. Bxf8 Qxf8 34. h4 Rh5 35. g4 Qc8 36. gxh5 Qg4+ 37. Kf1 Qh3+ 38. Ke1 Bc3+ 39. Ke2 Qg4+ 40. Kd3 Bf6 41. Qe2 1-0

[Event "1st Irena Warakomska Memorial"]
[Site "Suwalki"]
[Date "2017.08.18"]
[Round "9"]
[White "Stoma, Pawel"]
[Black "Czerw, Dawid"]
[Result "1/2-1/2"]
[ECO "B27"]
[WhiteElo "2348"]
[BlackElo "2222"]
[Annotator "ChessBase"]
[PlyCount "55"]
[EventDate "2017.??.??"]
[EventType "swiss"]
[EventCountry "POL"]
[SourceTitle "playchess.com"]
[Source "ChessBase"]
[SourceQuality "1"]
[TimeControl "40/5400+30:1800+30"]

1. Nf3 {[%emt 0:00:37]} c5 {[%emt 0:00:05]} 2. e4 {[%emt 0:00:35]} g6 {[%emt 0:00:05]} 3. c3 {[%emt 0:01:04]} Bg7 {[%emt 0:00:05]} 4. d4 {[%emt 0:00:35]} cxd4 {[%emt 0:00:05]} 5. cxd4 {[%emt 0:00:05]} d5 {[%emt 0:00:04]} 6. e5 {[%emt 0:02:33]} Bg4 {[%emt 0:00:10]} 7. Qb3 {[%emt 0:02:32]} Qd7 {[%emt 0:09:27]} 8. Nbd2 {[%emt 0:09:43]} Nc6 {[%emt 0:01:50]} 9. h3 {[%emt 0:01:28]} Bxf3 {[%emt 0:02:51]} 10. Nxf3 {[%emt 0:00:02]} e6 {[%emt 0:00:13]} 11. Bd3 {[%emt 0:01:49]} Nge7 {[%emt 0:00:30]} 12. Bd2 {[%emt 0:00:07]} O-O {[%emt 0:00:59]} 13. O-O {[%emt 0:06:45]} f6 {[%emt 0:01:26]} 14. Rae1 {[%emt 0:04:28]} f5 {[%emt 0:07:51]} 15. Qa3 {[%emt 0:07:45]} h6 {[%emt 0:00:59]} 16. b4 {[%emt 0:00:49]} a6 {[%emt 0:00:44]} 17. Qb2 {[%emt 0:01:33]} Nc8 {[%emt 0:06:13]} 18. a4 {[%emt 0:08:44]} N6e7 {[%emt 0:04:28]} 19. b5 {[%emt 0:03:12]} a5 {[%emt 0:00:58]} 20. b6 {[%emt 0:02:44]} Nc6 {[%emt 0:03:56]} 21. Rc1 {[%emt 0:03:42]} N8e7 {[%emt 0:01:12]} 22. h4 {[%emt 0:03:11]} Rfc8 {[%emt 0:03:51]} 23. Rc5 {[%emt 0:14:55]} Bf8 {[%emt 0:00:56]} 24. Rfc1 {[%emt 0:01:21]} Kf7 {[%emt 0:02:09]} 25. Ne1 {[%emt 0:07:02]} Ng8 {[%emt 0:02:08]} 26. R5c2 {[%emt 0:00:25]} Qd8 {[%emt 0:04:25]} 27. h5 {[%emt 0:01:43]} g5 {[%emt 0:02:17]} 28. g4 {[%emt 0:07:17]} 1/2-1/2

[Event "1st Irena Warakomska Memorial"]
[Site "Suwalki"]
[Date "2017.08.18"]
[Round "9"]
[White "Plichta, Kamil"]
[Black "Sagar, Shah"]
[Result "1/2-1/2"]
[ECO "B12"]
[WhiteElo "2341"]
[BlackElo "2397"]
[Annotator "ChessBase"]
[PlyCount "190"]
[EventDate "2017.??.??"]
[EventType "swiss"]
[EventCountry "POL"]
[SourceTitle "playchess.com"]
[Source "ChessBase"]
[SourceQuality "1"]
[TimeControl "40/5400+30:1800+30"]

1. e4 {[%emt 0:01:03]} c6 {[%emt 0:00:25]} 2. d4 {[%emt 0:01:11]} d5 {[%emt 0:00:09]} 3. e5 {[%emt 0:00:04]} Bf5 {[%emt 0:00:06]} 4. h4 {[%emt 0:00:04]} h5 {[%emt 0:00:28]} 5. Bd3 {[%emt 0:00:05]} Bxd3 {[%emt 0:00:29]} 6. Qxd3 {[%emt 0:00:06]} Qa5+ {[%emt 0:00:44]} 7. Nd2 {[%emt 0:00:06]} Qa6 {[%emt 0:00:55]} 8. c4 {[%emt 0:00:04]} e6 {[%emt 0:01:14]} 9. Ne2 {[%emt 0:03:41]} Nd7 {[%emt 0:02:31]} 10. b3 {[%emt 0:09:44]} Nh6 {[%emt 0:02:53]} 11. Qc3 {[%emt 0:07:53]} Nf5 {[%emt 0:02:43]} 12. Nf3 {[%emt 0:05:37]} dxc4 {[%emt 0:04:33]} 13. bxc4 {[%emt 0:05:10]} Nb6 {[%emt 0:00:44]} 14. c5 {[%emt 0:03:46]} Nd5 {[%emt 0:00:14]} 15. Qa3 {[%emt 0:06:22]} Qxa3 {[%emt 0:04:55]} 16. Bxa3 {[%emt 0:00:03]} O-O-O {[%emt 0:01:53]} 17. Ng5 {[%emt 0:00:34]} Rd7 {[%emt 0:07:48]} 18. Ne4 {[%emt 0:02:07]} f6 {[%emt 0:11:53]} 19. g3 {[%emt 0:01:35]} Be7 {[%emt 0:05:19]} 20. O-O {[%emt 0:01:52]} Rg8 {[%emt 0:05:07]} 21. Bb2 {[%emt 0:08:23]} g5 {[%emt 0:10:37]} 22. hxg5 {[%emt 0:03:42]} fxg5 {[%emt 0:00:27]} 23. Kg2 {[%emt 0:07:35]} g4 {[%emt 0:02:15]} 24. Rh1 {[%emt 0:00:31]} h4 {[%emt 0:00:49]} 25. gxh4 {[%emt 0:00:18]} Nxh4+ {[%emt 0:00:45]} 26. Kf1 {[%emt 0:01:06]} Rdd8 {[%emt 0:04:35]} 27. Bc1 {[%emt 0:02:20]} Rdf8 {[%emt 0:06:08]} 28. Rb1 {[%emt 0:02:02]} Rh8 {[%emt 0:05:32]} 29. Rb3 {[%emt 0:05:03]} Nf3 {[%emt 0:01:19]} 30. Rxh8 {[%emt 0:00:48]} Rxh8 {[%emt 0:00:02]} 31. Kg2 {[%emt 0:04:02]} Rh3 {[%emt 0:01:24]} 32. Be3 {[%emt 0:06:16]} a5 {[%emt 0:06:10]} 33. Nd6+ {[%emt 0:03:51]} Bxd6 {[%emt 0:01:46]} 34. exd6 {[%emt 0:00:14]} a4 {[%emt 0:01:49]} 35. Ra3 {[%emt 0:03:09]} Ne1+ {[%emt 0:05:19]} 36. Kg1 {[%emt 0:00:01]} g3 {[%emt 0:01:56]} 37. Nxg3 {[%emt 0:02:33]} Nc2 {[%emt 0:00:48]} 38. Rxa4 {[%emt 0:00:02]} Ncxe3 {[%emt 0:00:42]} 39. Ra8+ {[%emt 0:01:27]} Kd7 {[%emt 0:00:01]} 40. Rb8 {[%emt 0:00:00]} Nf5 {[%emt 0:02:28]} 41. Ne4 {[%emt 0:07:13]} Rh4 {[%emt 0:06:23]} 42. f3 {[%emt 0:00:08]} Nxd4 {[%emt 0:02:29]} 43. Ng5 {[%emt 0:01:21]} Rf4 {[%emt 0:01:26]} 44. Kf2 {[%emt 0:07:00]} Rf5 {[%emt 0:02:45]} 45. Rxb7+ {[%emt 0:00:08]} Kc8 {[%emt 0:02:04]} 46. Rg7 {[%emt 0:01:04]} Rf8 {[%emt 0:03:31]} 47. a4 {[%emt 0:03:10]} e5 {[%emt 0:10:56]} 48. a5 {[%emt 0:01:37]} e4 {[%emt 0:02:55]} 49. Nxe4 {[%emt 0:00:29]} Rxf3+ {[%emt 0:00:15]} 50. Kg1 {[%emt 0:00:43]} Ne6 {[%emt 0:02:07]} 51. Rh7 {[%emt 0:01:48]} Rf4 {[%emt 0:00:32]} 52. d7+ {[%emt 0:02:01]} Kc7 {[%emt 0:00:35]} 53. a6 {[%emt 0:01:47]} Rxe4 {[%emt 0:00:22]} 54. a7 {[%emt 0:00:19]} Ra4 {[%emt 0:00:36]} 55. d8=N+ {[%emt 0:02:32]} Kxd8 {[%emt 0:00:11]} 56. a8=R+ {[%emt 0:00:07]} Rxa8 {[%emt 0:00:05]} 57. Rh8+ {[%emt 0:00:04]} Kc7 {[%emt 0:00:10]} 58. Rxa8 {[%emt 0:00:04]} Nxc5 {[%emt 0:00:05]} 59. Ra7+ {[%emt 0:00:45]} Kb6 {[%emt 0:00:26]} 60. Rh7 {[%emt 0:00:29]} Ne4 {[%emt 0:00:28]} 61. Rh6 {[%emt 0:00:58]} Ndf6 {[%emt 0:00:18]} 62. Rh2 {[%emt 0:00:46]} Kb5 {[%emt 0:00:32]} 63. Rc2 {[%emt 0:00:06]} Nc5 {[%emt 0:00:08]} 64. Kf2 {[%emt 0:00:06]} Kb4 {[%emt 0:00:17]} 65. Rb2+ {[%emt 0:00:28]} Kc3 {[%emt 0:00:49]} 66. Rb6 {[%emt 0:00:22]} Nce4+ {[%emt 0:00:32]} 67. Kg1 {[%emt 0:00:36]} c5 {[%emt 0:00:20]} 68. Rc6 {[%emt 0:00:05]} c4 {[%emt 0:00:40]} 69. Kg2 {[%emt 0:00:18]} Kd4 {[%emt 0:00:18]} 70. Rxc4+ {[%emt 0:00:04]} Kxc4 {[%emt 0:00:04]} 71. Kf3 {[%emt 0:00:09]} Kd4 {[%emt 0:00:15]} 72. Kf4 {[%emt 0:00:04]} Nd6 {[%emt 0:00:16]} 73. Kf3 {[%emt 0:00:03]} Nd5 {[%emt 0:00:05]} 74. Ke2 {[%emt 0:00:08]} Ke4 {[%emt 0:00:16]} 75. Kf2 {[%emt 0:00:04]} Nc3 {[%emt 0:00:09]} 76. Kg3 {[%emt 0:00:04]} Kf5 {[%emt 0:00:29]} 77. Kf3 {[%emt 0:00:05]} Nc4 {[%emt 0:00:04]} 78. Kg3 {[%emt 0:00:03]} Ne5 {[%emt 0:00:10]} 79. Kf2 {[%emt 0:00:05]} Kf4 {[%emt 0:00:05]} 80. Kg2 {[%emt 0:00:04]} Nd3 {[%emt 0:00:15]} 81. Kh3 {[%emt 0:00:06]} Ne4 {[%emt 0:00:14]} 82. Kh4 {[%emt 0:00:09]} Nf6 {[%emt 0:00:06]} 83. Kh3 {[%emt 0:00:04]} Ne1 {[%emt 0:01:04]} 84. Kh4 {[%emt 0:00:17]} Ng2+ {[%emt 0:00:06]} 85. Kh3 {[%emt 0:00:05]} Kf3 {[%emt 0:00:04]} 86. Kh2 {[%emt 0:00:04]} Ng4+ {[%emt 0:00:48]} 87. Kh3 {[%emt 0:00:14]} Nf2+ {[%emt 0:00:09]} 88. Kh2 {[%emt 0:00:05]} Nf4 {[%emt 0:00:34]} 89. Kg1 {[%emt 0:00:03]} Ke2 {[%emt 0:00:05]} 90. Kh2 {[%emt 0:00:05]} Ne4 {[%emt 0:00:10]} 91. Kg1 {[%emt 0:00:30]} Ke1 {[%emt 0:00:27]} 92. Kh2 {[%emt 0:00:17]} Kf2 {[%emt 0:00:47]} 93. Kh1 {[%emt 0:00:05]} Ne2 {[%emt 0:00:43]} 94. Kh2 {[%emt 0:00:39]} Ng5 {[%emt 0:00:08]} 95. Kh1 {[%emt 0:00:01]} Nf3 {[%emt 0:00:23]} 1/2-1/2

[Event "1st Irena Warakomska Memorial"]
[Site "Suwalki"]
[Date "2017.08.18"]
[Round "9"]
[White "Mulet, Piotr"]
[Black "Zylka, Stanislaw"]
[Result "1-0"]
[ECO "C34"]
[WhiteElo "2295"]
[BlackElo "2368"]
[Annotator "ChessBase"]
[PlyCount "119"]
[EventDate "2017.??.??"]
[EventType "swiss"]
[EventCountry "POL"]
[SourceTitle "playchess.com"]
[Source "ChessBase"]
[SourceQuality "1"]
[TimeControl "40/5400+30:1800+30"]

1. e4 {[%emt 0:00:00]} e5 {[%emt 0:00:07]} 2. f4 {[%emt 0:00:00]} exf4 {[%emt 0:00:12]} 3. Nf3 {[%emt 0:00:00]} Ne7 {[%emt 0:00:51]} 4. d4 {[%emt 0:00:53]} d5 {[%emt 0:00:16]} 5. e5 {[%emt 0:00:13]} Ng6 {[%emt 0:01:19]} 6. Bd3 {[%emt 0:01:26]} Be7 {[%emt 0:03:18]} 7. Bxg6 {[%emt 0:13:34]} fxg6 {[%emt 0:13:19]} 8. Bxf4 {[%emt 0:00:09]} O-O {[%emt 0:02:29]} 9. Be3 {[%emt 0:01:39]} c6 {[%emt 0:01:37]} 10. Nbd2 {[%emt 0:01:10]} Na6 {[%emt 0:00:30]} 11. O-O {[%emt 0:05:13]} Bf5 {[%emt 0:01:30]} 12. a4 {[%emt 0:02:29]} Nc7 {[%emt 0:02:27]} 13. a5 {[%emt 0:00:19]} Ne6 {[%emt 0:00:23]} 14. Rf2 {[%emt 0:05:55]} g5 {[%emt 0:00:47]} 15. Nf1 {[%emt 0:10:26]} Qd7 {[%emt 0:01:10]} 16. Qd2 {[%emt 0:02:23]} h6 {[%emt 0:00:33]} 17. c3 {[%emt 0:03:48]} Rf7 {[%emt 0:01:32]} 18. b4 {[%emt 0:00:38]} Raf8 {[%emt 0:01:04]} 19. Ne1 {[%emt 0:02:09]} Nf4 {[%emt 0:20:18]} 20. Ng3 {[%emt 0:00:05]} Bh7 {[%emt 0:02:03]} 21. Qd1 {[%emt 0:02:49]} Bg6 {[%emt 0:00:52]} 22. Raa2 {[%emt 0:02:19]} Qe6 {[%emt 0:01:23]} 23. Rf1 {[%emt 0:03:12]} h5 {[%emt 0:08:15]} 24. Raf2 {[%emt 0:03:18]} h4 {[%emt 0:00:46]} 25. Bxf4 {[%emt 0:00:21]} gxf4 {[%emt 0:01:03]} 26. Ne2 {[%emt 0:02:34]} Qg4 {[%emt 0:04:59]} 27. h3 {[%emt 0:07:17]} Qh5 {[%emt 0:08:40]} 28. a6 {[%emt 0:06:28]} bxa6 {[%emt 0:01:58]} 29. Nf3 {[%emt 0:08:20]} Be4 {[%emt 0:01:14]} 30. Qa4 {[%emt 0:00:06]} g5 {[%emt 0:01:18]} 31. Qxc6 {[%emt 0:00:23]} g4 {[%emt 0:00:29]} 32. hxg4 {[%emt 0:00:33]} Qxg4 {[%emt 0:00:07]} 33. Nh2 {[%emt 0:02:03]} Qg5 {[%emt 0:00:25]} 34. Nf3 {[%emt 0:01:26]} Qg4 {[%emt 0:00:12]} 35. Nh2 {[%emt 0:00:05]} Qg5 {[%emt 0:00:09]} 36. Nf3 {[%emt 0:00:06]} Qf5 {[%emt 0:10:28]} 37. Nd2 {[%emt 0:05:15]} Rg7 {[%emt 0:00:51]} 38. Nxe4 {[%emt 0:00:26]} Qxe4 {[%emt 0:00:21]} 39. Qe6+ {[%emt 0:00:12]} Kh7 {[%emt 0:05:04]} 40. Qh3 {[%emt 0:00:00]} Bg5 {[%emt 0:02:23]} 41. Kh1 {[%emt 0:04:46]} Kg8 {[%emt 0:06:29]} 42. Ng1 {[%emt 0:00:51]} Be7 {[%emt 0:08:08]} 43. Re2 {[%emt 0:02:14]} Qg6 {[%emt 0:00:41]} 44. Qf3 {[%emt 0:00:38]} Qe6 {[%emt 0:00:21]} 45. Qh3 {[%emt 0:01:02]} Qc6 {[%emt 0:01:25]} 46. Qd3 {[%emt 0:01:46]} Rc8 {[%emt 0:02:42]} 47. Rf3 {[%emt 0:01:52]} Rg3 {[%emt 0:01:16]} 48. Ra2 {[%emt 0:01:37]} Qxc3 {[%emt 0:04:04]} 49. Rxg3+ {[%emt 0:00:15]} hxg3 {[%emt 0:01:00]} 50. Qg6+ {[%emt 0:00:07]} Kh8 {[%emt 0:00:30]} 51. Rxa6 {[%emt 0:00:56]} Qc2 {[%emt 0:00:06]} 52. Qh5+ {[%emt 0:04:18]} Kg7 {[%emt 0:00:05]} 53. Qg4+ {[%emt 0:00:22]} Kf7 {[%emt 0:01:24]} 54. Rh6 {[%emt 0:07:16]} Rf8 {[%emt 0:04:02]} 55. e6+ {[%emt 0:00:31]} Ke8 {[%emt 0:00:05]} 56. Qh5+ {[%emt 0:00:05]} Kd8 {[%emt 0:00:33]} 57. Qxd5+ {[%emt 0:00:08]} Kc7 {[%emt 0:01:03]} 58. Qd7+ {[%emt 0:00:06]} Kb6 {[%emt 0:00:06]} 59. Qxe7 {[%emt 0:00:28]} f3 {[%emt 0:00:06]} 60. Qc5+ {[%emt 0:00:15]} 1-0

[Event "1st Irena Warakomska Memorial"]
[Site "Suwalki"]
[Date "2017.08.18"]
[Round "9"]
[White "Sowul, Bartosz"]
[Black "Kulon, Klaudia"]
[Result "1-0"]
[ECO "A45"]
[WhiteElo "2183"]
[BlackElo "2359"]
[Annotator "ChessBase"]
[PlyCount "73"]
[EventDate "2017.??.??"]
[EventType "swiss"]
[EventCountry "POL"]
[SourceTitle "playchess.com"]
[Source "ChessBase"]
[SourceQuality "1"]
[TimeControl "40/5400+30:1800+30"]

1. d4 {[%emt 0:00:00]} Nf6 {[%emt 0:00:04]} 2. Bg5 {[%emt 0:00:00]} d5 {[%emt 0:00:10]} 3. Bxf6 {[%emt 0:00:34]} gxf6 {[%emt 0:00:04]} 4. c4 {[%emt 0:00:54]} c6 {[%emt 0:01:06]} 5. e3 {[%emt 0:01:51]} Bf5 {[%emt 0:02:12]} 6. Nc3 {[%emt 0:00:11]} e6 {[%emt 0:00:35]} 7. Nge2 {[%emt 0:01:12]} Bd6 {[%emt 0:02:13]} 8. Ng3 {[%emt 0:07:20]} Bg6 {[%emt 0:01:43]} 9. Qb3 {[%emt 0:03:43]} Qd7 {[%emt 0:07:26]} 10. Be2 {[%emt 0:09:36]} h5 {[%emt 0:05:59]} 11. c5 {[%emt 0:02:18]} Be7 {[%emt 0:04:04]} 12. h4 {[%emt 0:02:01]} Qc7 {[%emt 0:04:29]} 13. Qd1 {[%emt 0:02:24]} b6 {[%emt 0:01:39]} 14. cxb6 {[%emt 0:16:18]} Qxb6 {[%emt 0:00:23]} 15. Na4 {[%emt 0:00:12]} Qa5+ {[%emt 0:00:23]} 16. Kf1 {[%emt 0:00:12]} Bd6 {[%emt 0:06:58]} 17. Rh3 {[%emt 0:02:12]} Nd7 {[%emt 0:02:32]} 18. Rc1 {[%emt 0:02:46]} Ke7 {[%emt 0:04:28]} 19. a3 {[%emt 0:01:08]} Nb6 {[%emt 0:05:06]} 20. Nc5 {[%emt 0:08:19]} Rab8 {[%emt 0:04:18]} 21. e4 {[%emt 0:06:05]} Nc4 {[%emt 0:13:19]} 22. b4 {[%emt 0:02:22]} Qb5 {[%emt 0:00:05]} 23. Bxc4 {[%emt 0:05:40]} dxc4 {[%emt 0:00:05]} 24. Qe2 {[%emt 0:00:06]} a5 {[%emt 0:06:21]} 25. Nf5+ {[%emt 0:03:56]} Bxf5 {[%emt 0:00:06]} 26. exf5 {[%emt 0:00:06]} axb4 {[%emt 0:04:23]} 27. a4 {[%emt 0:04:07]} Qa5 {[%emt 0:02:22]} 28. fxe6 {[%emt 0:00:16]} Bxc5 {[%emt 0:01:18]} 29. exf7+ {[%emt 0:00:10]} Kf8 {[%emt 0:00:30]} 30. dxc5 {[%emt 0:02:00]} c3 {[%emt 0:01:55]} 31. Re1 {[%emt 0:03:14]} Qc7 {[%emt 0:04:14]} 32. Qe6 {[%emt 0:02:29]} Qxf7 {[%emt 0:08:19]} 33. Qd6+ {[%emt 0:00:37]} Kg8 {[%emt 0:00:47]} 34. Rg3+ {[%emt 0:00:11]} Kh7 {[%emt 0:00:23]} 35. Re7 {[%emt 0:00:44]} Rb7 {[%emt 0:00:35]} 36. Qd3+ {[%emt 0:00:47]} f5 {[%emt 0:00:06]} 37. Qxf5+ {[%emt 0:00:09]} 1-0